bitfinex-derivatives/quotes_SOLF0:USTF0_20250709
["timestamp","ask_amount","ask_price","bid_price","bid_amount"]
[1752084477032,4.72351784,154.06,153.98,4.72351784]
[1752084477233,4.76583791,154.06,153.98,4.72351784]
[1752084477734,6.4925,154.01,153.98,4.72351784]
[1752084478137,4.444,154.11,153.98,4.72351784]
[1752084478334,4.72011591,154.09,154.0,4.72011591]
[1752084478635,0.04571096,154.06,154.0,4.72011591]
[1752084478934,6.4911,154.04,154.02,4.72011591]
[1752084479135,0.04571096,154.06,154.01,4.71839297]
[1752084479531,6.4912,154.04,154.01,4.71839297]
[1752084481130,6.4912,154.04,154.01,11.21049297]
[1752084481327,6.4912,154.04,154.01,4.71839297]
[1752084481932,0.04571096,154.06,153.99,4.71839297]
[1752084482335,4.71839297,154.07,153.99,4.71839297]
[1752084482536,6.4924,154.01,153.99,4.71839297]
[1752084482730,4.71839297,154.06,153.99,4.71839297]
[1752084483031,0.04226285,154.05,153.99,11.21139297]
[1752084483336,0.04226285,154.05,153.99,4.71839297]
[1752084483540,0.04226285,154.05,153.95,2.2944]
[1752084483541,0.04226285,154.05,154.01,4.71839297]
[1752084483730,0.04226285,154.05,154.01,4.71845803]
[1752084484032,6.491,154.04,154.01,4.71845803]
[1752084484226,6.491,154.04,154.01,11.21055803]
[1752084484432,6.491,154.04,154.01,4.71845803]
[1752084484626,0.04226285,154.05,154.0,11.21105803]
[1752084484627,6.4914,154.03,154.0,11.21105803]
[1752084484839,0.04226285,154.05,153.99,4.71845803]
[1752084485037,4.71845803,154.08,153.99,4.71845803]
[1752084485237,6.4916,154.03,154.0,6.4924]
[1752084486039,6.492,154.02,153.99,11.21155803]
[1752084486336,0.04356198,154.04,153.95,2.2944]
[1752084486533,6.492,154.02,153.98,4.71845803]
[1752084486738,194.304,154.11,153.98,4.71845803]
[1752084486739,3.69019076,154.2,154.0,28.95691606]
[1752084486940,8.40864879,154.2,154.0,24.23845803]
[1752084487233,4.71845803,154.16,154.0,4.71845803]
[1752084487438,4.71845803,154.14,154.06,4.71845803]
[1752084487640,6.4887,154.1,154.06,11.20825803]
[1752084487835,6.4887,154.1,154.06,4.71845803]
[1752084488032,6.4887,154.1,154.08,0.04717256]
[1752084488240,6.4881,154.11,154.08,0.04717256]
[1752084488446,8.10059353,154.2,154.08,4.76563059]
[1752084488634,4.71845803,154.18,154.1,4.71845803]
[1752084488838,4.71845803,154.18,154.12,0.04123025]
[1752084489040,3.69019076,154.2,154.12,0.04123025]
[1752084489241,4.71845803,154.19,154.12,0.04123025]
[1752084489543,3.69019076,154.2,154.12,4.75968828]
[1752084489743,3.69019076,154.2,154.14,6.4865]
[1752084490137,3.69019076,154.2,154.12,4.75968828]
[1752084490333,3.69019076,154.2,154.16,4.71845803]
[1752084490737,3.69019076,154.2,154.18,4.71845803]
[1752084491038,3.69019076,154.2,154.16,7.10995778]
[1752084491238,3.69019076,154.2,154.16,0.0493239]
[1752084492041,6.4851,154.19,154.16,0.0493239]
[1752084492233,3.69019076,154.2,154.16,0.0493239]
[1752084493343,4.400425,154.29,154.23,6.4828]
[1752084493542,4.400425,154.31,154.17,2.3109]
[1752084493944,4.400425,154.35,154.25,7.05545314]
[1752084494139,4.400425,154.34,154.19,560.56]
[1752084494341,6.20303046,154.37,154.22,0.04636375]
[1752084494637,6.20303046,154.37,154.27,6.4813]
[1752084494638,6.479,154.33,154.27,6.4813]
[1752084494836,2.3276,154.37,154.19,560.56]
[1752084495434,10.01471035,154.37,154.28,0.04536489]
[1752084495644,6.4793,154.32,154.28,0.04536489]
[1752084495941,7.05218737,154.34,154.28,0.04536489]
[1752084496348,7.05218737,154.33,154.28,0.04536489]
[1752084496533,7.05218737,154.34,154.28,0.04536489]
[1752084496738,2.3276,154.37,154.28,0.04536489]
[1752084497241,7.05218737,154.36,154.28,0.04536489]
[1752084497442,2.3276,154.37,154.28,0.04536489]
[1752084497843,10.01238526,154.37,154.28,0.04536489]
[1752084498143,7.05218737,154.29,154.19,560.56]
[1752084498342,7.05218737,154.27,154.18,7.05218737]
[1752084498543,209.22,154.33,154.17,2.3109]
[1752084499141,7.06122873,154.24,154.17,2.3109]
[1752084499343,7.06122873,154.24,154.13,7.06122873]
[1752084499540,6.4844,154.2,154.14,6.4864]
[1752084499739,7.06122873,154.22,154.13,7.06122873]
[1752084499947,2.2863,154.23,154.13,7.06122873]
[1752084500140,6.4842,154.2,154.14,6.4867]
[1752084500943,7.06122873,154.22,154.13,7.06122873]
[1752084501546,9.34752873,154.23,154.13,7.06122873]
[1752084501945,2.2863,154.23,154.13,7.06122873]
[1752084502145,6.4839,154.21,154.15,6.4862]
[1752084502443,0.04510844,154.2,154.13,7.06122873]
[1752084502650,0.04510844,154.2,154.15,6.486]
[1752084502845,0.04510844,154.2,154.14,7.06478298]
[1752084503347,0.04510844,154.2,154.16,6.4858]
[1752084503547,0.04510844,154.2,154.14,7.06478298]
[1752084503849,6.52960844,154.2,154.15,6.4861]
[1752084504152,0.04510844,154.2,154.12,9.20068298]
[1752084504553,0.04510844,154.2,154.14,7.06478298]
[1752084505649,6.4847,154.19,154.12,2.1359]
[1752084505851,0.04510844,154.2,154.13,7.06478298]
[1752084506152,0.04510844,154.2,154.12,9.20068298]
[1752084506641,0.04510844,154.2,154.15,6.4863]
[1752084506949,6.4847,154.19,154.15,6.4863]
[1752084507355,6.52940844,154.2,154.16,6.4857]
[1752084507545,0.04510844,154.2,154.16,7.06390262]
[1752084507746,0.04510844,154.2,154.18,7.06390262]
[1752084508241,2.3136,154.27,154.18,7.06390262]
[1752084508242,9.37750262,154.27,154.18,7.06390262]
[1752084508445,4.51894267,154.26,154.18,7.06390262]
[1752084508745,9.37750262,154.27,154.14,212.08]
[1752084508746,6.4826,154.24,154.14,212.08]
[1752084508943,6.4826,154.24,154.17,7.06390262]
[1752084509253,4.51873954,154.26,154.14,212.08]
[1752084509254,6.4824,154.25,154.21,6.4837]
[1752084509851,6.52451133,154.25,154.21,6.4837]
[1752084510053,0.04211133,154.25,154.2,6.4841]
[1752084510351,0.04211133,154.25,154.19,0.04927138]
[1752084510552,0.04211133,154.25,154.21,7.05709033]
[1752084510755,0.04211133,154.25,154.19,0.04927138]
[1752084510756,0.04211133,154.25,154.23,7.05709033]
[1752084511149,6.4789,154.33,154.23,7.05709033]
[1752084511349,2.3447,154.34,154.26,7.05709033]
[1752084511853,560.12,154.36,154.28,7.05709033]
[1752084512054,2.2894,154.38,154.28,7.05709033]
[1752084512254,9.40179033,154.39,154.3,7.05709033]
[1752084512453,7.05709033,154.37,154.31,0.04910159]
[1752084512650,2.3447,154.39,154.31,0.04910159]
[1752084512848,9.40179033,154.39,154.31,0.04910159]
[1752084513154,6.28918771,154.39,154.31,0.04910159]
[1752084513349,2.3447,154.39,154.31,0.04910159]
[1752084513649,6.4774,154.37,154.32,6.4789]
[1752084513854,2.3447,154.39,154.32,6.4789]
[1752084514053,9.39390182,154.39,154.31,0.04910159]
[1752084514453,2.3447,154.39,154.31,0.04910159]
[1752084514651,3.69019076,154.41,154.32,7.04920182]
[1752084515048,3.69019076,154.41,154.33,6.4785]
[1752084515255,10.73939258,154.41,154.35,0.04351973]
[1752084515554,3.69019076,154.41,154.35,0.04351973]
[1752084515958,6.476,154.4,154.37,6.477]
[1752084516158,3.69019076,154.41,154.35,0.04351973]
[1752084516361,3.69019076,154.41,154.35,7.09272155]
[1752084516566,3.69019076,154.41,154.35,0.04351973]
[1752084516860,6.4763,154.39,154.35,6.52121973]
[1752084517256,3.69019076,154.41,154.35,0.04351973]
[1752084517855,6.4765,154.39,154.35,6.52121973]
[1752084518256,3.69019076,154.41,154.35,0.04351973]
[1752084518456,3.69019076,154.41,154.36,6.4773]
[1752084519163,3.69019076,154.41,154.37,6.477]
[1752084519464,3.69019076,154.41,154.35,0.04351973]
[1752084519662,6.4764,154.39,154.35,6.52121973]
[1752084520064,3.69019076,154.41,154.35,0.04351973]
[1752084520263,6.476,154.4,154.35,0.04351973]
[1752084520563,3.69019076,154.41,154.35,0.04351973]
[1752084520756,10.16599076,154.41,154.37,6.4768]
[1752084520955,10.16599076,154.41,154.35,0.04351973]
[1752084521162,3.69019076,154.41,154.36,7.04607699]
[1752084521463,3.69019076,154.41,154.36,11.62717699]
[1752084522063,3.69019076,154.41,154.38,6.4765]
[1752084523461,8.98374788,154.53,154.38,6.48]
[1752084523663,8.98374788,154.55,154.49,7.04607699]
[1752084523861,15.45294788,154.57,154.36,217.6411]
[1752084524061,13.66234788,154.59,154.36,215.4135]
[1752084524361,13.66234788,154.59,154.5,6.51527197]
[1752084524564,7.03100682,154.57,154.5,0.04387197]
[1752084524756,8.98374788,154.58,154.46,7.03100682]
[1752084524955,8.98374788,154.58,154.48,7.03100682]
[1752084525156,7.03100682,154.54,154.42,559.64]
[1752084525360,13.66234788,154.59,154.42,559.64]
[1752084525559,8.98374788,154.58,154.4,7.03100682]
[1752084525755,7.03100682,154.5,154.4,7.03100682]
[1752084525956,7.03100682,154.5,154.36,2.3535]
[1752084525957,7.03100682,154.51,154.45,6.4738]
[1752084526157,7.03100682,154.54,154.36,2.3535]
[1752084526359,8.98374788,154.58,154.44,7.03100682]
[1752084526562,243.4386,154.59,154.46,0.04089348]
[1752084526563,13.66234788,154.59,154.46,0.04089348]
[1752084526759,4.6786,154.59,154.46,0.04089348]
[1752084527162,4.6786,154.59,154.44,7.03100682]
[1752084527369,12.67393864,154.61,154.54,7.03100682]
[1752084527560,7.03100682,154.6,154.51,0.04106005]
[1752084527759,7.03100682,154.6,154.35,261.80402728]
[1752084527960,8.98374788,154.6,154.49,6.4721]
[1752084528161,7.03100682,154.58,154.54,0.04372907]
[1752084528361,8.98374788,154.6,154.54,0.04372907]
[1752084528565,8.98374788,154.6,154.52,7.03100682]
[1752084528758,7.03100682,154.6,154.43,559.28]
[1752084528963,12.67393864,154.61,154.55,0.04570112]
[1752084529165,12.67393864,154.61,154.5,7.03100682]
[1752084529460,12.67393864,154.61,154.56,0.04983455]
[1752084529867,3.69019076,154.61,154.56,0.04983455]
[1752084530369,8.98374788,154.6,154.56,0.04983455]
[1752084530569,19.14143864,154.61,154.56,0.04983455]
[1752084530869,12.67393864,154.61,154.56,0.04983455]
[1752084531271,8.98374788,154.6,154.56,0.04983455]
[1752084531477,12.67393864,154.61,154.56,0.04983455]
[1752084533273,19.14113864,154.61,154.56,0.04983455]
[1752084533474,8.98374788,154.6,154.56,0.04983455]
[1752084534667,12.67393864,154.61,154.56,0.04983455]
[1752084535075,8.98374788,154.6,154.56,0.04983455]
[1752084535267,12.67393864,154.61,154.56,0.04983455]
[1752084535469,8.98374788,154.6,154.56,0.04983455]
[1752084536676,16.0147547,154.6,154.56,0.04983455]
[1752084536974,13.49950682,154.58,154.56,0.04983455]
[1752084537171,8.98374788,154.6,154.56,0.04983455]
[1752084537377,17.96749576,154.65,154.56,0.04983455]
[1752084537680,29.94582627,154.85,154.57,558.94]
[1752084537977,556.38,154.85,154.57,558.94]
[1752084538180,556.38,154.87,154.59,0.04936794]
[1752084538371,556.38,154.87,154.62,7.01056194]
[1752084538574,556.38,154.87,154.62,28.04224776]
[1752084538872,0.0482641,154.73,154.7,0.04315664]
[1752084539574,10.7037715,154.81,154.62,7.01358074]
[1752084539776,7.01358074,154.79,154.7,0.04583504]
[1752084539973,3.69019076,154.81,154.7,0.04583504]
[1752084540278,3.69019076,154.81,154.66,7.01358074]
[1752084540468,3.69019076,154.81,154.64,7.01358074]
[1752084540673,6.4617,154.74,154.57,558.94]
[1752084540873,7.01358074,154.73,154.57,558.94]
[1752084541073,0.04835478,154.74,154.57,558.94]
[1752084541581,7.01358074,154.68,154.57,558.94]
[1752084541777,6.4631,154.71,154.61,6.4668]
[1752084541971,654.42,154.76,154.53,69.66578447]
[1752084542380,0.042684,154.68,154.53,69.66578447]
[1752084542885,2.2283,154.75,154.49,558.74]
[1752084543177,2.2283,154.75,154.54,7.01358074]
[1752084543382,0.04284626,154.62,154.49,558.74]
[1752084543776,2.2514,154.7,154.53,7.01358074]
[1752084543977,6.4644,154.68,154.5,62.0]
[1752084544180,7.01358074,154.68,154.59,7.01358074]
[1752084544486,2482.96,154.98,154.62,7.01358074]
[1752084544684,2.2514,154.85,154.53,90.84676239]
[1752084544879,2.2514,154.85,154.55,238.17669463]
[1752084545375,0.0497437,154.69,154.55,238.17669463]
[1752084545577,0.0497437,154.69,154.68,6.4642]
[1752084545780,2.2514,154.85,154.68,6.4642]
[1752084545973,6.4606,154.77,154.55,226.24]
[1752084546177,2.2514,154.85,154.64,11.93669463]
[1752084546379,2.2514,154.85,154.56,2.2209]
[1752084546575,6.4615,154.75,154.56,2.2209]
[1752084546779,2.2514,154.85,154.56,2.2209]
[1752084547481,11.94618128,154.78,154.56,2.2209]
[1752084547681,0.0436366,154.7,154.67,11.94618128]
[1752084547878,0.0436366,154.7,154.57,62.0]
[1752084548084,2.154,154.85,154.56,2.2209]
[1752084548382,2.154,154.85,154.67,0.04389805]
[1752084548581,2.154,154.85,154.56,2.2209]
[1752084548777,6.4585,154.82,154.63,6.4661]
[1752084549082,0.04522315,154.76,154.6,558.4]
[1752084549683,2.1457,154.84,154.6,558.4]
[1752084549984,2.1457,154.84,154.7,11.94618128]
[1752084550180,2.1457,154.84,154.6,558.4]
[1752084550380,8.6034,154.84,154.73,6.4617]
[1752084550583,11.94618128,154.83,154.6,558.4]
[1752084550778,0.04114131,154.72,154.6,558.4]
[1752084551175,4.131e-05,154.72,154.71,6.4629]
[1752084551479,11.94618128,154.82,154.66,62.0]
[1752084551787,2.1457,154.84,154.66,62.0]
[1752084551977,11.94618128,154.82,154.66,62.0]
[1752084552173,8.6034,154.84,154.74,6.4617]
[1752084552378,2.1457,154.84,154.75,11.94618128]
[1752084552586,11.94618128,154.82,154.72,0.04541965]
[1752084552776,2.1457,154.84,154.72,0.04541965]
[1752084552975,736.66,154.96,154.67,2.2199]
[1752084553174,9.076e-05,154.81,154.75,0.04474075]
[1752084555582,6.50032631,154.8,154.75,0.04474075]
[1752084555781,2.1534,154.79,154.75,0.04474075]
[1752084556288,8.613,154.79,154.75,0.04474075]
[1752084557284,2.1534,154.79,154.75,0.04474075]
[1752084557989,2.1534,154.79,154.68,11.94107552]
[1752084558388,2.1534,154.79,154.71,11.94107552]
[1752084558887,9.076e-05,154.81,154.76,6.4605]
[1752084559291,0.04857499,154.77,154.67,62.0]
[1752084559682,9.076e-05,154.81,154.72,11.94107552]
[1752084559890,0.04515227,154.74,154.72,11.94107552]
[1752084560191,9.076e-05,154.81,154.75,6.50220719]
[1752084560591,9.076e-05,154.81,154.75,6.4611]
[1752084560791,9.076e-05,154.81,154.72,11.94107552]
[1752084560992,9.076e-05,154.81,154.75,11.94107552]
[1752084561392,9.076e-05,154.81,154.78,6.4599]
[1752084561688,9.076e-05,154.81,154.78,11.94107552]
[1752084561892,9.076e-05,154.81,154.75,0.04334282]
[1752084562092,9.076e-05,154.81,154.79,11.94107552]
[1752084562993,9.076e-05,154.81,154.8,6.4592]
[1752084563588,9.076e-05,154.81,154.78,0.04151181]
[1752084564594,9.076e-05,154.81,154.79,6.4596]
[1752084564892,9.076e-05,154.81,154.78,11.98258733]
[1752084565093,9.076e-05,154.81,154.78,0.04151181]
[1752084566492,9.076e-05,154.81,154.8,6.4592]
[1752084569296,9.076e-05,154.81,154.79,6.4595]
[1752084569798,9.076e-05,154.81,154.78,0.04151181]
[1752084569985,9.076e-05,154.81,154.8,6.4592]
[1752084570389,9.076e-05,154.81,154.8,18.40027552]
[1752084570795,9.076e-05,154.81,154.8,6.4592]
[1752084571193,9.076e-05,154.81,154.8,13.461344]
[1752084571393,2.2517,154.89,154.85,6.457]
[1752084571594,2.2065,154.92,154.85,7.002144]
[1752084571797,0.04126073,154.89,154.88,6.4556]
[1752084571993,0.04126073,154.89,154.87,0.04431199]
[1752084572398,0.04126073,154.89,154.88,6.4558]
[1752084573197,0.04126073,154.89,154.88,13.457944]
[1752084573496,8.659,154.96,154.86,62.0456159]
[1752084573693,2.2065,154.96,154.87,7.002144]
[1752084573892,2.2065,154.96,154.88,7.002144]
[1752084574088,2.2878,154.97,154.88,7.002144]
[1752084574288,2.2878,154.97,154.9,7.002144]
[1752084574491,2.2878,154.97,154.91,0.04089878]
[1752084574895,2.2878,154.97,154.92,6.4539]
[1752084575100,2.2878,154.97,154.91,0.04089878]
[1752084575301,561.59019076,155.01,154.93,7.002144]
[1752084575695,6.4509,155.0,154.93,7.002144]
[1752084575901,561.59019076,155.01,154.89,7.002144]
[1752084576100,7.002144,154.99,154.95,0.04749892]
[1752084576400,7.002144,154.99,154.9,6.4547]
[1752084576597,7.002144,154.99,154.9,7.002144]
[1752084576796,561.59019076,155.01,154.89,7.002144]
[1752084576994,7.002144,154.99,154.86,62.0]
[1752084577302,561.59019076,155.01,154.89,7.002144]
[1752084577496,7.002144,155.0,154.93,6.4537]
[1752084577696,7.002144,155.0,154.91,7.04956917]
[1752084577697,561.59019076,155.01,154.91,7.04956917]
[1752084577893,561.59019076,155.01,154.91,7.002144]
[1752084578498,6.4513,154.99,154.91,7.002144]
[1752084578698,561.59019076,155.01,154.86,62.0]
[1752084579101,561.59019076,155.01,154.92,7.002144]
[1752084579405,6.4519,154.98,154.86,62.0]
[1752084579602,6.4519,154.98,154.92,7.002144]
[1752084579799,7.002144,154.98,154.86,62.0]
[1752084580005,7.002144,154.98,154.89,7.002144]
[1752084580399,7.002144,155.0,154.91,7.002144]
[1752084580597,561.59019076,155.01,154.93,7.002144]
[1752084580807,3.69019076,155.01,154.95,7.002144]
[1752084581104,3.69019076,155.01,154.94,7.002144]
[1752084581308,3.69019076,155.01,154.86,62.0]
[1752084581501,6.451,155.0,154.93,7.002144]
[1752084582313,3.69019076,155.01,154.94,7.002144]
[1752084582618,3.69019076,155.01,154.95,0.04502096]
[1752084583609,3.69019076,155.01,154.95,7.03782049]
[1752084583807,3.69019076,155.01,154.95,0.04502096]
[1752084584212,10.68431045,155.01,154.95,0.04502096]
[1752084584423,6.4519,154.98,154.95,0.04502096]
[1752084584617,10.68431045,155.01,154.95,0.04502096]
[1752084584817,6.4525,154.96,154.95,0.04502096]
[1752084585017,3.69019076,155.01,154.86,70.80422496]
[1752084585320,3.69019076,155.01,154.91,13.44841969]
[1752084585321,6.4524,154.97,154.91,13.44841969]
[1752084585513,6.99411969,155.0,154.86,70.80422496]
[1752084585713,6.99411969,154.96,154.87,8.7233697]
[1752084585916,11.31991969,154.95,154.88,15.1788697]
[1752084586116,11.31991969,154.95,154.89,8.72740368]
[1752084586316,0.04479288,154.93,154.9,8.72740368]
[1752084586512,0.04479288,154.93,154.91,8.72740368]
[1752084586716,0.04479288,154.93,154.87,6.4562]
[1752084586912,0.04479288,154.93,154.88,17.52506451]
[1752084587117,0.04479288,154.93,154.89,8.72083955]
[1752084587316,0.04479288,154.93,154.9,8.72083955]
[1752084587521,0.04479288,154.93,154.91,8.72083955]
[1752084587720,0.04479288,154.93,154.92,8.72083955]
[1752084588019,0.04479288,154.93,154.89,8.80422496]
[1752084588417,6.4552,154.9,154.87,11.74538765]
[1752084588619,6.4552,154.9,154.89,8.78192117]
[1752084589217,6.4556,154.89,154.87,11.74538765]
[1752084589522,0.04085252,154.91,154.88,8.77687083]
[1752084589915,6.4554,154.89,154.88,8.77687083]
[1752084590115,0.04874559,154.91,154.88,8.77687083]
[1752084590316,0.04874559,154.91,154.89,8.77687083]
[1752084590521,6.50364559,154.91,154.89,8.77687083]
[1752084590924,0.04874559,154.91,154.89,8.77687083]
[1752084591223,7.04286528,154.91,154.88,8.77687083]
[1752084591422,0.04874559,154.91,154.88,8.77687083]
[1752084591611,0.04874559,154.91,154.87,8.77687083]
[1752084592217,6.4557,154.89,154.87,8.77687083]
[1752084592414,0.04874559,154.91,154.86,8.77687083]
[1752084592620,6.4554,154.9,154.88,8.77687083]
[1752084592928,0.04874559,154.91,154.87,11.74538765]
[1752084593121,0.04874559,154.91,154.89,8.75474429]
[1752084593424,6.455,154.9,154.89,8.75474429]
[1752084593619,0.04874559,154.91,154.87,11.74538765]
[1752084593821,0.04874559,154.91,154.9,8.74895661]
[1752084594222,0.04874559,154.91,154.89,8.74895661]
[1752084594421,0.04874559,154.91,154.9,8.74895661]
[1752084594616,0.04874559,154.91,154.88,11.74538765]
[1752084594815,6.99411969,154.94,154.9,8.74558479]
[1752084595021,0.04852215,154.91,154.89,8.74558479]
[1752084595222,0.04852215,154.91,154.9,8.74558479]
[1752084595420,6.4551,154.9,154.89,8.74326478]
[1752084596130,0.04216619,154.91,154.85,11.74538765]
[1752084596320,0.04216619,154.91,154.84,11.74538765]
[1752084596519,6.99411969,154.93,154.84,11.74538765]
[1752084596520,6.4557,154.89,154.84,11.74538765]
[1752084596731,6.99411969,154.93,154.85,11.74538765]
[1752084596926,0.04156308,154.89,154.84,11.74538765]
[1752084597132,6.4561,154.88,154.82,13.45241969]
[1752084597431,0.04156308,154.89,154.8,62.0]
[1752084597625,8.8320856,154.88,154.82,6.4582]
[1752084597821,6.4557,154.89,154.83,6.99411969]
[1752084598026,0.04351185,154.87,154.8,62.0]
[1752084598221,8.83207907,154.86,154.81,6.99411969]
[1752084598425,8.83207907,154.86,154.8,62.0]
[1752084598426,0.04351185,154.87,154.82,6.99411969]
[1752084598633,8.83412003,154.86,154.81,6.99411969]
[1752084598834,0.04351185,154.87,154.8,6.99411969]
[1752084599030,8.83411513,154.86,154.8,6.99411969]
[1752084599234,15.29141513,154.85,154.8,6.99411969]
[1752084599439,8.83728837,154.84,154.8,6.99411969]
[1752084599733,6.4573,154.85,154.79,13.45351969]
[1752084599931,15.29474176,154.84,154.78,564.0198]
[1752084600135,8.83724176,154.83,154.78,557.56]
[1752084600429,8.83724176,154.82,154.79,6.99411969]
[1752084600634,0.04830427,154.83,154.79,6.99411969]
[1752084600836,8.7807271,154.82,154.79,6.99411969]
[1752084601031,0.04830427,154.83,154.79,13.45361969]
[1752084601236,8.78386065,154.82,154.78,557.56]
[1752084601531,6.50640427,154.83,154.78,564.55411969]
[1752084601735,0.04830427,154.83,154.78,564.55411969]
[1752084602034,8.7857293,154.82,154.78,557.56]
[1752084602236,6.50650427,154.83,154.77,6.99411969]
[1752084602237,8.7857293,154.81,154.77,6.99411969]
[1752084602436,0.04830427,154.83,154.77,6.99411969]
[1752084602627,8.79225193,154.82,154.77,6.99411969]
[1752084602828,8.7924948,154.81,154.77,6.99411969]
[1752084603026,0.04830427,154.83,154.77,6.99411969]
[1752084603224,8.79840788,154.82,154.77,13.45421969]
[1752084603427,8.79840788,154.81,154.77,13.45421969]
[1752084603631,0.04830427,154.83,154.77,6.99411969]
[1752084603834,8.8004033,154.82,154.77,6.99411969]
[1752084604034,0.04830427,154.83,154.77,6.99411969]
[1752084604241,17.66574217,154.82,154.74,62.0]
[1752084604430,8.80562788,154.81,154.78,6.99411969]
[1752084604636,8.80562788,154.8,154.78,6.99411969]
[1752084604836,8.90841856,154.83,154.79,6.4596]
[1752084605029,8.80835908,154.82,154.8,6.99411969]
[1752084605233,8.80835908,154.81,154.78,6.4596]
[1752084605432,3.07805908,154.8,154.74,62.0]
[1752084605638,0.04830427,154.83,154.79,6.99411969]
[1752084605939,8.86011429,154.84,154.83,6.4578]
[1752084606135,8.86011429,154.84,154.79,6.99411969]
[1752084606436,0.04731092,154.85,154.79,6.99411969]
[1752084606735,2.1541,154.92,154.83,6.99411969]
[1752084606943,2.1541,154.92,154.86,6.99411969]
[1752084607131,2.1541,154.92,154.85,6.4567]
[1752084607335,2.1541,154.92,154.86,6.99411969]
[1752084607828,2.1541,154.92,154.86,13.45061969]
[1752084608036,2.1541,154.92,154.86,6.99411969]
[1752084608231,11.81310523,154.96,154.88,6.99411969]
[1752084608437,21.08872492,154.97,154.88,6.99411969]
[1752084608633,2.2815,154.97,154.88,6.99411969]
[1752084609134,2.2815,154.97,154.9,6.99411969]
[1752084609340,2.2815,154.97,154.91,0.04424136]
[1752084609728,2.2815,154.97,154.89,6.99411969]
[1752084609934,6.99411969,154.96,154.8,557.74]
[1752084610139,6.99411969,154.94,154.8,564.73411969]
[1752084610335,6.99411969,154.94,154.85,6.99411969]
[1752084610843,14.09460523,154.97,154.93,6.99411969]
[1752084611035,2.2815,154.97,154.93,6.99411969]
[1752084611236,2.32231718,154.97,154.93,6.4536]
[1752084611432,2.32231718,154.97,154.92,6.99411969]
[1752084611634,2.32231718,154.97,154.93,0.04088071]
[1752084611830,2.32231718,154.97,154.93,6.49438071]
[1752084612030,2.32231718,154.97,154.93,0.04088071]
[1752084613041,6.453,154.95,154.93,0.04088071]
[1752084613239,2.32231718,154.97,154.93,0.04088071]
[1752084613843,6.4528,154.95,154.93,0.04088071]
[1752084614341,2.32231718,154.97,154.9,6.99411969]
[1752084614342,14.13542241,154.97,154.9,6.99411969]
[1752084614643,2.32231718,154.97,154.89,6.99411969]
[1752084614843,6.4535,154.94,154.89,6.99411969]
[1752084615031,14.13542241,154.97,154.89,6.99411969]
[1752084615236,6.4534,154.94,154.89,6.99411969]
[1752084615436,2.2815,154.97,154.88,6.4553]
[1752084615636,0.04894956,154.93,154.87,13.45001969]
[1752084615844,0.04894956,154.93,154.82,62.0]
[1752084616046,0.04894956,154.93,154.87,6.99411969]
[1752084616240,14.09460523,154.97,154.87,6.99411969]
[1752084616441,0.04817942,154.92,154.87,6.99411969]
[1752084617142,6.50247942,154.92,154.82,62.0]
[1752084617336,0.04817942,154.92,154.88,6.99411969]
[1752084617540,8.38965383,154.91,154.88,6.99411969]
[1752084617745,8.38965383,154.9,154.88,6.99411969]
[1752084617946,8.38965383,154.89,154.88,6.99411969]
[1752084618248,8.38965383,154.89,154.87,6.99411969]
[1752084618536,8.38965383,154.88,154.87,6.99411969]
[1752084618744,8.38965383,154.88,154.87,6.4561]
[1752084618946,8.38965383,154.88,154.87,13.45021969]
[1752084619444,8.38965383,154.88,154.87,6.4561]
[1752084619648,8.38965383,154.88,154.87,13.45021969]
[1752084619839,8.38965383,154.88,154.87,6.99411969]
[1752084620042,8.38965383,154.88,154.82,62.0]
[1752084620244,6.4553,154.9,154.84,6.99411969]
[1752084620448,8.40714795,154.89,154.84,6.99411969]
[1752084620647,8.40714795,154.88,154.84,6.99411969]
[1752084620852,0.04268837,154.89,154.86,6.99411969]
[1752084621144,8.40722244,154.88,154.86,6.99411969]
[1752084621337,0.04268837,154.89,154.86,6.99411969]
[1752084621542,8.40715765,154.88,154.86,6.99411969]
[1752084621744,0.04268837,154.89,154.86,6.99411969]
[1752084621948,11.81310523,154.96,154.82,62.0]
[1752084622247,571.67460523,154.97,154.91,6.99411969]
[1752084622543,6.4529,154.95,154.91,6.99411969]
[1752084622745,6.4529,154.95,154.9,6.99411969]
[1752084622943,578.12690523,154.97,154.92,6.4537]
[1752084623144,0.04414404,154.94,154.92,6.99411969]
[1752084623640,0.04414404,154.94,154.92,13.44781969]
[1752084623948,0.04414404,154.94,154.82,62.0]
[1752084624247,14.09460523,154.97,154.9,13.44881969]
[1752084624546,6.99411969,154.96,154.87,13.44991969]
[1752084624739,0.04709242,154.95,154.87,13.44991969]